fUSD/lending_fUSD_20260329
["ID","MTS","AMOUNT","RATE_DAILY","PERIOD"]
[419045087,1774806643610,-500.0,0.00013698,2]
[419045088,1774806643620,-500.0,0.00013698,2]
[419045089,1774806643630,-500.0,0.00013698,2]
[419045090,1774806643640,-500.0,0.00013698,2]
[419045091,1774806643650,-500.0,0.00013698,2]
[419045092,1774806643660,-500.0,0.00013698,2]
[419045093,1774806643670,-500.0,0.00013698,2]
[419045094,1774806643679,-500.0,0.00013698,2]
[419045095,1774806643689,-500.0,0.00013698,2]
[419045096,1774806643698,-500.0,0.00013698,2]
[419045097,1774806643708,-500.0,0.00013698,2]
[419045098,1774806643717,-917.07,0.00013698,2]
[419045099,1774806643727,-917.07,0.00013698,2]
[419045100,1774806643737,-917.07,0.00013698,2]
[419045101,1774806643747,-917.07,0.00013698,2]
[419045102,1774806643757,-917.07,0.00013698,2]
[419045103,1774806643767,-917.07,0.00013698,2]
[419045104,1774806643777,-917.07,0.00013698,2]
[419045105,1774806643787,-917.07,0.00013698,2]
[419045106,1774806643796,-917.07,0.00013698,2]
[419045107,1774806643805,-917.07,0.00013698,2]
[419045108,1774806643815,-917.07,0.00013698,2]
[419045109,1774806643824,-917.07,0.00013698,2]
[419045110,1774806643834,-917.07,0.00013698,2]
[419045111,1774806643843,-917.07,0.00013698,2]
[419045112,1774806643853,-917.07,0.00013698,2]
[419045113,1774806643863,-917.07,0.00013698,2]
[419045114,1774806643872,-917.07,0.00013698,2]
[419045115,1774806643881,-500.0,0.00013698,2]
[419045116,1774806643891,-500.0,0.00013698,2]
[419045117,1774806643901,-500.0,0.00013698,2]
[419045118,1774806643911,-500.0,0.00013698,2]
[419045119,1774806643921,-500.0,0.00013698,2]
[419045120,1774806643931,-500.0,0.00013698,2]
[419045121,1774806643941,-500.0,0.00013698,2]
[419045122,1774806643951,-500.0,0.00013698,2]
[419045123,1774806643960,-500.0,0.00013698,2]
[419045124,1774806643971,-500.0,0.00013698,2]
[419045125,1774806643981,-500.0,0.00013698,2]
[419045126,1774806643991,-500.0,0.00013698,2]
[419045127,1774806644000,-476.77743701,0.00013698,2]
[419045128,1774806644010,-500.0,0.00013698,2]
[419045129,1774806644019,-500.0,0.00013698,2]
[419045130,1774806644029,-500.0,0.00013698,2]
[419045131,1774806644038,-500.0,0.00013698,2]
[419045132,1774806644047,-500.0,0.00013698,2]
[419045133,1774806644057,-500.0,0.00013698,2]
[419045134,1774806644066,-500.0,0.00013698,2]
[419045135,1774806644076,-279.07,0.00013698,2]
[419045136,1774806644086,-500.0,0.00013698,2]
[419045137,1774806644101,-500.0,0.00013698,2]
[419045138,1774806644111,-500.0,0.00013698,2]
[419045139,1774806644121,-600.87743374,0.00013698,2]
[419045141,1774806644131,-6291.95,0.00013699,2]
[419045143,1774806644140,-500.0,0.00013699,2]
[419045145,1774806644150,-222.34784204,0.00013699,2]
[419045146,1774806644159,-220.41161421,0.000137,2]
[419045147,1774806644168,-354.69381036,0.000137,2]
[419045148,1774806644178,-4373.32,0.000137,2]
[419045149,1774806644189,-3286.49,0.000137,2]
[419045150,1774806644198,-1602.93,0.000137,2]
[419045151,1774806644208,-500.0,0.000137,2]
[419045152,1774806644218,-500.0,0.000137,2]
[419045153,1774806644228,-500.0,0.000137,2]
[419045154,1774806644238,-20694.71,0.000137,2]
[419045155,1774806644248,-4678.52,0.000137,2]
[419045156,1774806644258,-4789.28,0.000137,2]
[419045157,1774806644268,-2500.0,0.00013764,2]
[419045158,1774806644279,-2500.0,0.00013764,2]
[419045159,1774806644289,-2500.0,0.00013764,2]
[419045160,1774806644299,-2000.0,0.00013764,2]
[419045161,1774806644308,-2500.0,0.00013764,2]
[419045162,1774806644319,-1500.0,0.00013764,2]
[419045163,1774806644329,-247.27,0.00013773,2]
[419045164,1774806644340,-506.20731316,0.00013805,2]
[419045165,1774806644350,-151.0,0.00013805,2]
[419045166,1774806644360,-200.0,0.00013806,2]
[419045167,1774806644370,-500.0,0.00013833,2]
[419045168,1774806644381,-500.0,0.00013843,2]
[419045169,1774806644391,-500.0,0.00013843,2]
[419045170,1774806644401,-500.0,0.00013843,2]
[419045171,1774806644412,-500.0,0.00013843,2]
[419045172,1774806644422,-500.0,0.00013843,2]
[419045173,1774806644433,-500.0,0.00013843,2]
[419045174,1774806644443,-403.83679365,0.00013843,2]
[419045175,1774806644452,-210.04,0.0001385,2]
[419045176,1774806644463,-500.0,0.0001386,2]
[419045177,1774806644472,-2500.0,0.00013864,2]
[419045178,1774806644482,-166.66,0.00013897,2]
[419045179,1774806644492,-250.0,0.00013898,2]
[419045180,1774806644502,-500.37169193,0.00013913,2]
[419045181,1774806644513,-500.0,0.00013913,2]
[419045182,1774806644524,-549.5046014,0.00013913,2]
[419045183,1774806644535,-500.0,0.00013913,2]
[419045184,1774806644545,-500.0,0.00013913,2]
[419045185,1774806644555,-342.71585944,0.00013913,2]
[419045186,1774806644564,-500.0,0.00013913,2]
[419045187,1774806644574,-500.0,0.00013913,2]
[419045188,1774806644584,-154.52171326,0.00013998,2]
[419045189,1774806644594,-60000.0,0.00014115,2]
[419045190,1774806644604,-1847.95,0.00014117,2]
[419045191,1774806644614,-3292.0,0.00014124,2]
[419045192,1774806644624,-166.66,0.0001419,2]
[419045193,1774806644634,-43753.19235818,0.00014192,2]
[419045194,1774806644644,-57524.8690227,0.00014192,2]
[419045195,1774806644654,-823.0,0.00014194,2]
[419045196,1774806644664,-258.3752,0.000142,2]
[419045197,1774806644679,-217.8882415,0.00014247,2]
[419045198,1774806644689,-1003.54904412,0.00014248,2]
[419045199,1774806644699,-1000.0,0.00014248,2]
[419045200,1774806644709,-502.98896701,0.00014248,2]
[419045201,1774806644719,-3000.0,0.00014312,2]
[419045202,1774806644729,-3000.0,0.00014312,2]
[419045203,1774806644740,-1000.0,0.00014312,2]
[419045204,1774806644750,-3000.0,0.00014312,2]
[419045205,1774806644760,-247.27,0.00014324,2]
[419045206,1774806644770,-150.0,0.00014332,2]
[419045207,1774806644781,-200.0,0.00014354,2]
[419045208,1774806644791,-1000.0,0.00014381,2]
[419045209,1774806644801,-1000.0,0.00014391,2]
[419045210,1774806644811,-1000.0,0.00014391,2]
[419045211,1774806644822,-910.58294734,0.00014391,2]
[419045212,1774806644832,-1000.0,0.00014391,2]
[419045213,1774806644843,-1000.0,0.00014391,2]
[419045214,1774806644853,-1000.0,0.00014408,2]
[419045215,1774806644863,-500.0,0.00014411,2]
[419045216,1774806644873,-1096.29865712,0.00014412,2]
[419045217,1774806644883,-3000.0,0.00014412,2]
[419045218,1774806644894,-736.0,0.00014427,2]
[419045219,1774806644904,-160.0,0.00014459,2]
[419045220,1774806644914,-160.0,0.00014459,2]
[419045221,1774806644925,-959.8630956,0.00014459,2]
[419045222,1774806644935,-160.0,0.00014459,2]
[419045223,1774806644945,-1000.0,0.0001446,2]
[419045224,1774806644955,-1000.0,0.0001446,2]
[419045225,1774806644965,-1000.0,0.0001446,2]
[419045226,1774806644975,-298.0,0.00014461,2]
[419045227,1774806644985,-166.66,0.00014482,2]
[419045228,1774806644995,-30000.0,0.00014495,2]
[419045229,1774806645006,-182.89,0.0001456,2]
[419045230,1774806645017,-2000.0,0.00014592,2]
[419045231,1774806645027,-198.85,0.00014638,2]
[419045232,1774806645037,-43753.19235818,0.00014757,2]
[419045233,1774806645047,-57524.8690227,0.00014757,2]
[419045234,1774806645058,-166.66,0.00014775,2]
[419045235,1774806645068,-685.01158904,0.00014796,2]
[419045236,1774806645079,-1745.04491428,0.0001486,2]
[419045237,1774806645089,-1501.46003451,0.0001486,2]
[419045238,1774806645100,-3500.0,0.0001486,2]
[419045239,1774806645110,-247.27,0.00014875,2]
[419045240,1774806645121,-171.5006073,0.000149,2]
[419045241,1774806645132,-171.5006073,0.000149,2]
[419045242,1774806645142,-200.0,0.00014902,2]
[419045243,1774806645152,-1007.9229115,0.00014929,2]
[419045244,1774806645163,-210.04,0.00014931,2]
[419045245,1774806645174,-1500.0,0.00014939,2]
[419045246,1774806645185,-1332.25501618,0.00014939,2]
[419045247,1774806645196,-1500.0,0.00014939,2]
[419045248,1774806645207,-500.0,0.00014939,2]
[419045249,1774806645217,-1500.0,0.00014956,2]
[419045250,1774806645227,-509.58099597,0.0001496,2]
[419045251,1774806645237,-500.0,0.00014986,2]
[419045252,1774806645247,-300.0,0.00015,2]
[419045253,1774806645258,-4373.32,0.00015,2]
[419045254,1774806645268,-1602.93,0.00015,2]
[419045255,1774806645278,-20694.71,0.00015,2]
[419045256,1774806645288,-500.0,0.00015008,2]
[419045257,1774806645299,-1500.0,0.00015008,2]
[419045258,1774806645309,-1500.0,0.00015008,2]
[419045259,1774806645319,-1050.151,0.00015029,2]
[419045260,1774806645329,-629.043,0.00015029,2]
[419045261,1774806645339,-3518.0,0.00015029,2]
[419045262,1774806645350,-1270.708,0.00015029,2]
[419045263,1774806645360,-151.208,0.00015029,2]
[419045264,1774806645369,-272.0,0.00015029,2]
[419045265,1774806645379,-217.0,0.00015029,2]
[419045266,1774806645389,-3765.0,0.00015029,2]
[419045267,1774806645399,-415.0,0.00015029,2]
[419045268,1774806645409,-257.63398392,0.0001504,2]
[419045269,1774806645419,-166.66,0.00015067,2]
[419045270,1774806645429,-1000.0,0.00015076,2]
[419045271,1774806645440,-1000.0,0.00015076,2]
[419045272,1774806645450,-3286.49,0.000151,2]
[419045273,1774806645460,-4678.52,0.000151,2]
[419045274,1774806645470,-4789.28,0.000151,2]
[419045275,1774806645480,-1096.29865712,0.00015156,2]
[419045276,1774806645491,-285.21,0.00015284,2]
[419045277,1774806645500,-57524.8690227,0.00015323,2]
[419045278,1774806645510,-43753.19235818,0.00015323,2]
[419045279,1774806645521,-166.66,0.0001536,2]
[419045280,1774806645531,-1570.0,0.000154,2]
[419045281,1774806645543,-2639.53398762,0.00015408,2]
[419045282,1774806645553,-485.47,0.00015409,2]
[419045283,1774806645563,-500.0,0.00015435,2]
[419045284,1774806645573,-1453.002171,0.00015438,7]
[419045285,1774806645584,-2223.826594,0.00015438,7]
[419045286,1774806645594,-200.0,0.0001545,2]
[419045287,1774806645605,-485.47,0.00015467,2]
[419045288,1774806645615,-2000.0,0.00015487,2]
[419045289,1774806645626,-2000.0,0.00015487,2]
[419045290,1774806645636,-500.0,0.00015499,2]
[419045291,1774806645646,-626.8,0.00015499,2]
[419045292,1774806645657,-500.0,0.00015499,2]
[419045293,1774806645666,-917.07,0.00015499,2]
[419045294,1774806645677,-339.1023,0.000155,2]
[419045295,1774806645688,-1644.43337785,0.00015504,2]
[419045296,1774806645699,-4000.0,0.00015507,2]
[419045297,1774806645710,-4609.0,0.00015536,2]
[419045298,1774806645721,-1725.66563804,0.00015556,2]
[419045299,1774806645730,-2000.0,0.00015556,2]
[419045300,1774806645742,-1400.0,0.000156,5]
[419045301,1774806645753,-200.0,0.000156,5]
[419045302,1774806645764,-2000.0,0.00015602,2]
[419045303,1774806645773,-2000.0,0.00015602,2]
[419045304,1774806645783,-2000.0,0.00015602,2]
[419045305,1774806645796,-2000.0,0.00015602,2]
[419045306,1774806645808,-2000.0,0.00015602,2]
[419045307,1774806645819,-2000.0,0.00015602,2]
[419045308,1774806645829,-2000.0,0.00015602,2]
[419045309,1774806645841,-2000.0,0.00015602,2]
[419045310,1774806645850,-2000.0,0.00015602,2]
[419045311,1774806645860,-2000.0,0.00015602,2]
[419045312,1774806645870,-1152.0,0.00015603,2]
[419045313,1774806645882,-485.47,0.00015643,2]
[419045314,1774806645891,-182.89,0.00015696,2]
[419045315,1774806645901,-900.0,0.000157,5]
[419045316,1774806645912,-1400.0,0.000157,5]
[419045317,1774806645924,-200.0,0.000157,5]
[419045318,1774806645936,-485.47,0.00015701,2]
[419045319,1774806645946,-683.0,0.0001574,2]
[419045320,1774806645956,-500.0,0.00015753,2]
[419045321,1774806645966,-880.69,0.00015754,2]
[419045322,1774806645975,-485.47,0.0001576,2]
[419045323,1774806645985,-683.0,0.00015763,2]
[419045324,1774806645994,-204.0,0.00015774,2]
[419045325,1774806646004,-198.85,0.00015776,2]
[419045327,1774806646015,-204.0,0.00015792,2]
[419045328,1774806646026,-900.0,0.000158,5]
[419045329,1774806646036,-1252.0,0.000158,2]
[419045330,1774806646047,-1400.0,0.000158,5]
[419045331,1774806646058,-200.0,0.000158,5]
[419045333,1774806646070,-485.47,0.00015818,2]
[419045334,1774806646080,-227.70167578,0.00015822,2]
[419045335,1774806646091,-65223.01927979,0.0001584,2]
[419045336,1774806646102,-43753.19235818,0.00015888,2]
[419045337,1774806646112,-57524.8690227,0.00015888,2]
[419045338,1774806646122,-2000.0,0.0001589,2]
[419045339,1774806646132,-4000.0,0.00015895,2]
[419045340,1774806646142,-1096.29865712,0.000159,2]
[419045341,1774806646152,-37681.26631164,0.000159,2]
[419045342,1774806646162,-150.0,0.000159,2]
[419045343,1774806646172,-150.0,0.000159,2]
[419045344,1774806646182,-150.0,0.000159,2]
[419045345,1774806646192,-301.09400044,0.000159,2]
[419045346,1774806646202,-900.0,0.000159,5]
[419045347,1774806646212,-150.0,0.000159,2]
[419045348,1774806646223,-1400.0,0.000159,5]
[419045349,1774806646234,-208.7575855,0.000159,2]
[419045350,1774806646244,-3549.29768922,0.000159,2]
[419045351,1774806646255,-200.0,0.000159,5]
[419045352,1774806646265,-2000.0,0.00015919,2]
[419045353,1774806646275,-275.0,0.00015926,2]
[419045354,1774806646285,-485.56150054,0.00015935,2]
[419045355,1774806646295,-3835.20744626,0.0001596,2]
[419045356,1774806646305,-187.44575691,0.00015978,2]
[419045357,1774806646315,-191787.3956928,0.00015988,2]
[419045358,1774806646324,-4051.5663196,0.00015988,2]
[419045359,1774806646335,-40162.1408498,0.00015988,2]
[419045360,1774806646345,-510985.9793298,0.00015988,2]
[419045361,1774806646355,-12154.6989585,0.00015988,2]
[419045362,1774806646365,-18596.625728,0.00015988,2]
[419045363,1774806646376,-90540.6848681,0.00015988,2]
[419045364,1774806646386,-500.0,0.00015995,2]
[419045365,1774806646397,-500.0,0.00015995,2]
[419045366,1774806646408,-500.0,0.00015995,2]
[419045367,1774806646418,-500.0,0.00015995,2]
[419045368,1774806646429,-500.0,0.00015995,2]
[419045369,1774806646439,-269.33966266,0.00015995,2]
[419045370,1774806646450,-626.8,0.00015995,2]
[419045371,1774806646460,-626.8,0.00015995,2]
[419045372,1774806646470,-626.8,0.00015995,2]
[419045373,1774806646481,-626.8,0.00015995,2]
[419045374,1774806646492,-626.8,0.00015995,2]
[419045375,1774806646503,-626.90965577,0.00015995,2]
[419045379,1774806646919,-500.0,0.00015995,2]
[419045380,1774806646930,-500.0,0.00015995,2]
[419045381,1774806646939,-303.20422672,0.00015995,2]
[419045382,1774806646950,-917.07,0.00015995,2]
[419045383,1774806646959,-917.07,0.00015995,2]
[419045384,1774806646969,-917.07,0.00015995,2]
[419045385,1774806646978,-917.07,0.00015995,2]
[419045386,1774806646990,-917.07,0.00015995,2]
[419045387,1774806647000,-917.07,0.00015995,2]
[419045388,1774806647010,-219.0509211,0.00015996,2]
[419045389,1774806647020,-913.50870424,0.00015996,2]
[419045391,1774806647030,-156.53355321,0.00015996,2]
[419045393,1774806647041,-380.31995269,0.00015996,2]
[419045395,1774806647051,-151.0,0.00015997,2]
[419045396,1774806647061,-151.0,0.00015997,2]
[419045397,1774806647071,-666.0,0.00015999,2]
[419045398,1774806647080,-666.0,0.00015999,2]
[419045399,1774806647091,-158.958,0.00015999,2]
[419045400,1774806647100,-2513673.0069981,0.00016,2]
[419045402,1774806648414,-6013.0,0.00015029,2]
[419045403,1774806648424,-23935.97847713,0.00016,2]
[419045404,1774806648449,-306.069,0.00016,2]
[419045405,1774806648727,-6248.4375,0.00016,2]
[419045406,1774806648746,-984.49388968,0.00016,2]
[419045407,1774806648764,-1967.92900374,0.00016,2]
[419045408,1774806648889,-531.3115,0.00011436,2]
[419045409,1774806648898,-35.8599759,0.00016,2]
[419045410,1774806648913,-46249.356553,0.00016,2]
[419045411,1774806648927,-129302.96688479,0.00016,2]
[419045412,1774806648945,-800.135,0.00016,2]
[419045413,1774806648956,-52015.44199107,0.00016,2]
[419045414,1774806648967,-12502.13488927,0.00016,2]
[419045415,1774806666695,1410.0,0.0001045,2]
[419045416,1774806738908,320.12,0.0001005,2]
[419045417,1774806783632,3928.1,9.914e-05,2]
[419045418,1774806893467,4330.52,9.914e-05,2]
[419045419,1774806905401,152.0,9.914e-05,3]
[419045420,1774806922989,621.86,9.597e-05,2]
[419045421,1774807045973,1600.0,9.886e-05,2]
[419045422,1774807121662,168.0,7.194e-05,2]
[419045423,1774807121886,156.0,7.194e-05,2]
[419045424,1774807122115,156.0,7.194e-05,2]
[419045425,1774807122355,156.0,7.194e-05,2]
[419045426,1774807122567,156.0,7.194e-05,2]
[419045427,1774807122771,156.0,7.194e-05,2]
[419045428,1774807123009,156.0,7.194e-05,2]
[419045429,1774807123254,156.0,7.194e-05,2]
[419045430,1774807123464,156.0,7.194e-05,2]
[419045431,1774807123700,156.0,7.194e-05,2]
[419045432,1774807123996,156.0,7.194e-05,2]
[419045433,1774807124259,156.0,7.194e-05,2]
[419045434,1774807124472,156.0,7.194e-05,2]
[419045435,1774807124677,156.0,7.194e-05,2]
[419045436,1774807124908,156.0,7.194e-05,2]
[419045437,1774807125273,156.0,7.194e-05,2]
[419045438,1774807125548,156.0,7.194e-05,2]
[419045439,1774807125796,156.0,7.194e-05,2]
[419045440,1774807126037,156.0,7.194e-05,2]
[419045441,1774807126255,156.0,7.194e-05,2]
[419045442,1774807126501,156.0,7.194e-05,2]
[419045443,1774807126714,156.0,7.194e-05,2]
[419045444,1774807128384,156.0,7.194e-05,2]
[419045445,1774807128675,164.0,7.194e-05,2]
[419045446,1774807128884,162.0,7.194e-05,2]
[419045447,1774807129118,162.0,7.194e-05,2]
[419045448,1774807140311,242.8863862,1.8e-05,2]
[419045449,1774807178379,200.0,9.861e-05,2]
[419045450,1774807251155,435.9455498,0.0001,2]
[419045451,1774807253623,653.91832469,0.0001,2]
[419045452,1774807253849,653.91832469,0.0001,2]
[419045454,1774807501039,300.0,0.00010499,2]
[419045455,1774807501250,1200.0,0.00010499,2]
[419045456,1774807507519,152.0,9.914e-05,3]
[419045457,1774807570547,5043.0,0.000104,3]
[419045458,1774807602197,1933.03,9.763e-05,2]
[419045459,1774807602751,1900.0,9.879e-05,2]
[419045460,1774807603285,1268.9,9.929e-05,2]
[419045461,1774807603820,1400.0,0.00010124,2]
[419045462,1774807604355,889.48,0.0001015,2]
[419045463,1774807604883,1100.0,0.00010262,2]
[419045464,1774807606971,2050.0,0.00010286,2]
[419045465,1774807607076,2200.0,0.00010387,2]
[419045466,1774807628176,1887.26,9.832e-05,2]
[419045467,1774807646323,210.89,9.868e-05,2]
[419045468,1774807657733,6438.79142938,8e-05,2]
[419045469,1774807673899,230.23,9.444e-05,2]
[419045470,1774807674424,505.19,0.00010392,2]
[419045471,1774807805616,153.0,9.914e-05,3]
[419045472,1774807808429,9111.59,9.5e-05,3]
[419045473,1774807808453,10000.01,9.5e-05,3]
[419045474,1774807808479,31681.38651846,9.5e-05,3]
[419045485,1774807831879,-1100.0,0.000105,3]
[419045486,1774807831889,-300.0,0.000105,3]
[419045487,1774807831897,-880.0,0.00010573,2]
[419045488,1774807831906,-902.3873477,0.00010599,2]
[419045489,1774807831917,-297.6126523,0.00010599,2]
[419045490,1774807831927,-150.0,0.000106,2]
[419045491,1774807831936,-552.3873477,0.000106,3]
[419045492,1774807831954,-1747.6126523,0.000106,3]
[419045493,1774807831964,-356.18550728,0.000106,2]
[419045494,1774807831973,-794.43275552,0.000106,2]
[419045495,1774807831982,-1232.68000375,0.000106,2]
[419045496,1774807831991,-1327.22463652,0.000106,2]
[419045497,1774807832001,-1031.25231195,0.000106,2]
[419045498,1774807832010,-5534.0,0.000106,5]
[419045499,1774807832019,-700.0,0.000106,3]
[419045500,1774807832029,-187.44575692,0.00010618,2]
[419045501,1774807832038,-1264.9916859,0.00010621,2]
[419045502,1774807832050,-292.0383141,0.00010621,2]
[419045503,1774807832059,-332.31956518,0.00010628,2]
[419045504,1774807832073,-397.39660215,0.00010628,2]
[419045505,1774807832089,-142810.89126485,0.00010628,2]
[419045506,1774807832103,-19446.21470394,0.00010628,2]
[419045507,1774807832114,-1309.45761818,0.00010628,2]
[419045508,1774807832129,-2319.81522465,0.00010628,2]
[419045509,1774807832150,-300.0,0.00010628,2]
[419045510,1774807832162,-10013.18713073,0.00010628,2]
[419045511,1774807832173,-4434.76220405,0.00010628,2]
[419045514,1774807837678,-354.48897107,0.00010627,2]
[419045515,1774807837691,-145.51102893,0.00010627,2]
[419045516,1774807837701,-224.29380524,0.00010627,2]
[419045517,1774807837711,-253.55479819,0.00010627,2]
[419045518,1774807837720,-500.0,0.00010627,2]
[419045519,1774807837729,-500.0,0.00010627,2]
[419045520,1774807837738,-500.0,0.00010627,2]
[419045521,1774807837748,-500.0,0.00010627,2]
[419045522,1774807837757,-500.0,0.00010627,2]
[419045523,1774807837767,-500.0,0.00010627,2]
[419045524,1774807837777,-500.0,0.00010627,2]
[419045525,1774807837787,-500.0,0.00010627,2]
[419045526,1774807837796,-500.0,0.00010627,2]
[419045527,1774807837806,-500.0,0.00010627,2]
[419045528,1774807837816,-500.0,0.00010627,2]
[419045529,1774807837826,-233.91994698,0.00010627,2]
[419045530,1774807837838,-266.08005302,0.00010627,2]
[419045531,1774807837847,-500.0,0.00010627,2]
[419045532,1774807837857,-385.28311528,0.00010627,2]
[419045533,1774807837894,-114.71688472,0.00010627,2]
[419045534,1774807837904,-311.90158186,0.00010627,2]
[419045535,1774807837931,-188.09841814,0.00010627,2]
[419045536,1774807837940,-500.0,0.00010627,2]
[419045537,1774807837950,-622.70749315,0.00010627,2]
[419045538,1774807837959,-500.0,0.00010627,2]
[419045539,1774807837968,-4050.19408871,0.00010628,2]
[419045540,1774807837980,-3982.22112952,0.00010628,2]
[419045542,1774807837991,-2310603.54046804,0.00010628,2]
[419045544,1774807838007,-150.0,0.00010628,2]
[419045546,1774807838017,-944.1584157,0.00010629,2]
[419045547,1774807838028,-375.01701036,0.00010629,2]
[419045549,1774807838040,-227.02109222,0.00010629,2]
[419045550,1774807838050,-73438.2572,0.00010629,2]
[419045551,1774807838060,-2500.0,0.00010629,2]
[419045552,1774807838070,-3500.0,0.000107,3]
[419045553,1774807838080,-1100.0,0.000107,3]
[419045554,1774807838090,-1080.18049598,0.00010728,3]
[419045556,1774807838100,-4662.044,0.00010728,2]
[419045557,1774807838110,-294.76,0.00010728,2]
[419045559,1774807838120,-4566.50840311,0.00010728,2]
[419045560,1774807838130,-703881.5985608,0.00010729,2]
[419045568,1774807839780,-542.73119898,0.00010729,2]
[419045569,1774807839986,-480061.59739989,0.00010729,2]
[419045570,1774807840040,-276.99747719,0.00010729,2]
[419045571,1774807840566,-315237.07536314,0.00010729,2]
[419045572,1774807840576,-1077.7933,0.00010729,2]
[419045573,1774807840586,-10000.0,0.00010729,2]
[419045574,1774807840596,-2366.19845948,0.00010742,2]
[419045575,1774807840606,-500.0,0.00010746,2]
[419045576,1774807840616,-216.0,0.00010766,2]
[419045577,1774807840626,-500.0,0.00010773,2]
[419045578,1774807840635,-500.0,0.00010773,2]
[419045579,1774807840645,-500.0,0.00010773,2]
[419045580,1774807840655,-167.63692162,0.00010773,2]
[419045581,1774807840665,-500.0,0.00010773,2]
[419045582,1774807840675,-500.0,0.00010773,2]
[419045583,1774807840686,-500.0,0.00010773,2]
[419045584,1774807840696,-1667.0,0.00010778,2]
[419045585,1774807840706,-1980.0,0.00010788,2]
[419045586,1774807840715,-1291.0,0.00010799,2]
[419045587,1774807840725,-150.0,0.000108,2]
[419045588,1774807840735,-4700.0,0.000108,3]
[419045589,1774807840745,-1500.0,0.000108,3]
[419045590,1774807840756,-1500.0,0.00010809,2]
[419045591,1774807840766,-352.0,0.00010821,2]
[419045592,1774807840776,-500.0,0.00010823,2]
[419045593,1774807840785,-500.0,0.00010823,2]
[419045594,1774807840795,-500.0,0.00010823,2]
[419045595,1774807840806,-500.0,0.00010823,2]
[419045596,1774807840815,-500.0,0.00010823,2]
[419045597,1774807840825,-500.0,0.00010823,2]
[419045598,1774807840836,-500.0,0.00010823,2]
[419045599,1774807840846,-500.0,0.00010823,2]
[419045600,1774807840857,-500.0,0.00010823,2]
[419045601,1774807840866,-200.0,0.00010823,2]
[419045602,1774807840876,-500.0,0.00010823,2]
[419045603,1774807840887,-500.0,0.00010823,2]
[419045604,1774807840896,-151.0,0.00010823,2]
[419045605,1774807840907,-151.0,0.00010823,2]
[419045606,1774807840916,-151.0,0.00010823,2]
[419045607,1774807840926,-151.0,0.00010823,2]
[419045608,1774807840935,-151.0,0.00010823,2]
[419045609,1774807840945,-500.0,0.00010823,2]
[419045610,1774807840955,-151.0,0.00010823,2]
[419045611,1774807840965,-500.0,0.00010823,2]
[419045612,1774807840975,-151.0,0.00010823,2]
[419045613,1774807840984,-230.85837694,0.00010823,2]
[419045614,1774807840994,-151.0,0.00010823,2]
[419045615,1774807841005,-151.0,0.00010823,2]
[419045616,1774807841014,-151.0,0.00010823,2]
[419045617,1774807841024,-151.0,0.00010823,2]
[419045618,1774807841033,-151.0,0.00010823,2]
[419045619,1774807841044,-151.0,0.00010823,2]
[419045620,1774807841054,-151.0,0.00010823,2]
[419045621,1774807841064,-151.0,0.00010823,2]
[419045622,1774807841074,-151.0,0.00010823,2]
[419045623,1774807841084,-151.0,0.00010823,2]
[419045624,1774807841094,-151.0,0.00010823,2]